bitfinex-derivatives/quotes_SOLF0:USTF0_20241208
["timestamp","ask_amount","ask_price","bid_price","bid_amount"]
[1733633155559,2.088,239.27,239.21,2.0884]
[1733633155754,6.40073707,239.28,239.21,2.0884]
[1733633155953,2.6501,239.34,239.19,6.40073707]
[1733633155954,6.40073707,239.26,239.19,6.40073707]
[1733633156463,2.0881,239.24,239.19,6.40073707]
[1733633156660,2.0881,239.24,239.16,3.8651]
[1733633156661,6.40073707,239.26,239.17,6.40073707]
[1733633157268,6.40073707,239.24,239.19,2.0885]
[1733633158172,6.40073707,239.22,239.15,3.9488]
[1733633159266,2.0886,239.19,239.15,3.9488]
[1733633159668,2.0886,239.19,239.15,10.34953707]
[1733633160058,2.0886,239.19,239.15,8.26073707]
[1733633160261,1.86,239.24,239.17,6.40073707]
[1733633161064,1.86,239.28,239.21,6.40073707]
[1733633161260,6.40073707,239.29,239.21,6.40073707]
[1733633161469,8.26073707,239.29,239.21,6.40073707]
[1733633161667,2.0881,239.25,239.21,8.48903707]
[1733633162466,6.40073707,239.31,239.24,6.40073707]
[1733633163273,2.0878,239.29,239.24,8.48883707]
[1733633163565,2.6504,239.41,239.26,6.40073707]
[1733633163773,6.40073707,239.33,239.26,6.40073707]
[1733633163966,6.40073707,239.33,239.27,2.0878]
[1733633163967,2.0875,239.31,239.27,2.0878]
[1733633165570,2.0875,239.31,239.26,8.26073707]
[1733633165571,2.0877,239.29,239.22,4.0521]
[1733633165778,6.40073707,239.3,239.24,1.9]
[1733633167674,2.0879,239.27,239.24,1.9]
[1733633170474,2.6504,239.41,239.25,6.40073707]
[1733633170778,6.40073707,239.31,239.24,1.9]
[1733633170972,6.40073707,239.29,239.24,1.9]
[1733633171169,6.40073707,239.29,239.22,10.45283707]
[1733633171779,2.088,239.26,239.22,10.45283707]
[1733633172377,2.088,239.25,239.22,10.45283707]
[1733633172879,2.0884,239.21,239.1,6.06566634]
[1733633173071,6.40073707,239.25,239.18,6.40073707]
[1733633173470,2.0885,239.2,239.16,8.30073707]
[1733633173675,6.40073707,239.22,239.16,6.40073707]
[1733633173877,6.40073707,239.2,239.11,1.9]
[1733633174081,6.40073707,239.2,239.13,6.40073707]
[1733633174679,2.0887,239.18,239.13,6.40073707]
[1733633174876,8.30073707,239.22,239.13,6.40073707]
[1733633175684,2.0888,239.17,239.13,6.40073707]
[1733633176275,2.0888,239.17,239.15,6.40073707]
[1733633177977,2.0888,239.17,239.11,1.9]
[1733633177978,6.40073707,239.2,239.13,6.40073707]
[1733633178982,2.0887,239.18,239.13,6.40073707]
[1733633179283,6.40073707,239.2,239.13,6.40073707]
[1733633179884,2.0887,239.18,239.15,6.40073707]
[1733633180080,8.30073707,239.25,239.17,6.40073707]
[1733633180385,1.9,239.24,239.17,6.40073707]
[1733633180885,2.6459,239.36,239.17,6.40073707]
[1733633181186,6.40073707,239.28,239.21,6.40073707]
[1733633182185,6.40073707,239.28,239.21,8.48903707]
[1733633183379,2.088,239.26,239.21,8.48903707]
[1733633184185,2.0878,239.28,239.23,6.40073707]
[1733633184589,6.40073707,239.3,239.23,6.40073707]
[1733633186585,2.0877,239.3,239.25,6.40073707]
[1733633187683,2.0877,239.3,239.26,2.088]
[1733633187875,2.0877,239.3,239.25,6.40073707]
[1733633187876,8.30073707,239.32,239.25,6.40073707]
[1733633188077,6.40073707,239.3,239.23,6.40073707]
[1733633189589,2.0879,239.27,239.23,8.48883707]
[1733633191284,2.0876,239.3,239.25,6.40073707]
[1733633191481,2.0876,239.3,239.27,6.40073707]
[1733633193489,2.0873,239.33,239.29,2.0877]
[1733633193789,2.0873,239.33,239.29,8.48843707]
[1733633194683,2.0873,239.34,239.31,8.48823707]
[1733633194984,6.40073707,239.38,239.31,8.48823707]
[1733633195588,2.0873,239.34,239.3,2.0876]
[1733633195793,6.40073707,239.34,239.22,3.901]
[1733633195989,1.9,239.39,239.28,6.40073707]
[1733633196291,2.0873,239.34,239.3,8.48833707]
[1733633197986,2.0873,239.34,239.31,2.0875]
[1733633198288,2.0872,239.36,239.3,6.40073707]
[1733633198487,2.0872,239.36,239.32,6.40073707]
[1733633198889,2.087,239.38,239.34,8.48793707]
[1733633199791,2.087,239.37,239.34,8.48793707]
[1733633199991,6.40073707,239.39,239.32,8.48813707]
[1733633200589,2.0872,239.35,239.32,8.48813707]
[1733633201290,2.0872,239.35,239.28,1.9]
[1733633201291,2.0872,239.35,239.31,2.0875]
[1733633201685,2.0872,239.35,239.31,8.48823707]
[1733633203392,2.0873,239.33,239.29,2.0877]
[1733633203697,2.0873,239.33,239.31,6.40073707]
[1733633206294,1.9,239.38,239.31,6.40073707]
[1733633206489,2.0871,239.36,239.33,6.40073707]
[1733633206690,1.9,239.38,239.33,6.40073707]
[1733633207691,2.0871,239.36,239.33,6.40073707]
[1733633208502,2.0871,239.36,239.32,8.48813707]
[1733633210103,2.0871,239.36,239.32,2.0874]
[1733633210398,2.0871,239.36,239.33,6.40073707]
[1733633210997,2.0869,239.38,239.34,2.0872]
[1733633211502,2.0869,239.38,239.35,6.40073707]
[1733633211896,2.0869,239.38,239.35,8.48793707]
[1733633212402,1.9,239.42,239.35,6.40073707]
[1733633212602,1.3373,239.49,239.36,2.087]
[1733633212603,1.9,239.43,239.36,2.087]
[1733633213196,2.0868,239.4,239.36,2.087]
[1733633213502,6.40073707,239.42,239.35,2.0872]
[1733633214103,6.40073707,239.4,239.28,1.9]
[1733633214299,6.40073707,239.4,239.31,6.40073707]
[1733633214702,2.0872,239.35,239.32,2.0874]
[1733633217603,2.0871,239.36,239.31,6.40073707]
[1733633217797,2.0871,239.36,239.33,6.40073707]
[1733633220205,2.0872,239.35,239.33,6.40073707]
[1733633222305,2.0871,239.37,239.33,6.40073707]
[1733633223901,6.40073707,239.42,239.33,6.40073707]
[1733633224102,2.0871,239.36,239.33,8.48803707]
[1733633229014,2.0874,239.33,239.22,3.901]
[1733633229208,1.88,239.38,239.23,4.59615203]
[1733633229209,8.28073707,239.38,239.23,4.59615203]
[1733633229416,8.28073707,239.38,239.24,7.15217042]
[1733633229715,8.28073707,239.38,239.3,6.40073707]
[1733633230412,2.0874,239.33,239.3,6.40073707]
[1733633230613,8.28073707,239.38,239.29,2.0877]
[1733633230805,8.28073707,239.38,239.3,6.40073707]
[1733633231610,2.0875,239.32,239.3,6.40073707]
[1733633231811,1.3373,239.49,239.3,6.40073707]
[1733633232117,1.3373,239.49,239.36,6.40073707]
[1733633232118,2.0869,239.39,239.36,6.40073707]
[1733633235614,1.88,239.42,239.36,6.40073707]
[1733633235814,2.0869,239.38,239.36,6.40073707]
[1733633240112,2.0867,239.41,239.36,6.40073707]
[1733633240317,6.40073707,239.45,239.36,6.40073707]
[1733633240520,1.88,239.44,239.38,6.40073707]
[1733633241016,2.0868,239.39,239.38,6.40073707]
[1733633241216,6.40073707,239.47,239.38,6.40073707]
[1733633241412,2.0865,239.43,239.4,6.40073707]
[1733633241622,1.88,239.46,239.4,6.40073707]
[1733633241814,6.40073707,239.47,239.4,6.40073707]
[1733633242120,2.0865,239.43,239.4,6.40073707]
[1733633242921,8.28073707,239.46,239.34,4.0171]
[1733633243217,6.40073707,239.44,239.37,6.40073707]
[1733633243822,6.40073707,239.44,239.34,4.0171]
[1733633244123,6.40073707,239.44,239.36,6.40073707]
[1733633244722,2.0869,239.39,239.36,6.40073707]
[1733633245725,3.9662,239.47,239.39,2.0868]
[1733633245924,1.88,239.47,239.42,6.40073707]
[1733633246429,2.0865,239.43,239.42,6.40073707]
[1733633246726,1.88,239.47,239.42,6.40073707]
[1733633247631,2.0865,239.44,239.42,6.40073707]
[1733633248322,1.88,239.47,239.42,6.40073707]
[1733633248629,2.0865,239.43,239.42,6.40073707]
[1733633249132,1.51574192,241.58,239.44,6.40073707]
[1733633249133,6.40073707,239.52,239.44,6.40073707]
[1733633249329,8.28073707,239.52,239.44,6.40073707]
[1733633250631,2.0863,239.45,239.44,6.40073707]
[1733633251026,6.40073707,239.48,239.39,1.88]
[1733633251234,2.0863,239.45,239.4,6.40073707]
[1733633251421,6.40073707,239.47,239.4,6.40073707]
[1733633251626,8.28073707,239.47,239.4,6.40073707]
[1733633252731,2.0866,239.42,239.4,6.40073707]
[1733633253523,2.0863,239.45,239.4,8.48743707]
[1733633253734,2.0863,239.45,239.43,6.40073707]
[1733633254830,2.0862,239.47,239.43,6.40073707]
[1733633255733,2.0862,239.47,239.43,8.48723707]
[1733633259033,2.0862,239.47,239.43,2.0865]
[1733633259235,2.0862,239.47,239.43,8.48723707]
[1733633260037,2.0862,239.47,239.45,6.40073707]
[1733633261537,6.40073707,239.52,239.45,6.40073707]
[1733633261538,2.086,239.49,239.45,6.40073707]
[1733633261837,8.26073707,239.53,239.45,6.40073707]
[1733633262936,1.86,239.53,239.45,6.40073707]
[1733633263137,8.26073707,239.53,239.45,6.40073707]
[1733633264032,2.086,239.49,239.45,8.48703707]
[1733633265230,2.0858,239.51,239.45,6.40073707]
[1733633265434,6.40073707,239.53,239.45,6.40073707]
[1733633266437,6.40073707,239.54,239.47,6.40073707]
[1733633268642,2.0858,239.51,239.47,8.48683707]
[1733633268837,2.0858,239.51,239.49,6.40073707]
[1733633269735,1.3541,239.64,239.49,6.40073707]
[1733633269931,2.0855,239.54,239.49,8.48663707]
[1733633270537,2.0855,239.54,239.51,6.40073707]
[1733633271137,2.0856,239.53,239.51,6.40073707]
[1733633272733,1.3541,239.64,239.51,6.40073707]
[1733633272938,1.3541,239.64,239.54,6.40073707]
[1733633273138,6.40073707,239.62,239.54,6.40073707]
[1733633273739,2.0852,239.58,239.54,8.48623707]
[1733633274342,2.0852,239.58,239.56,6.40073707]
[1733633275140,1.86,239.63,239.56,6.40073707]
[1733633275141,1.86,239.64,239.56,8.48603707]
[1733633275744,2.085,239.6,239.56,8.48603707]
[1733633276344,2.085,239.6,239.58,6.40073707]
[1733633276841,2.085,239.6,239.55,2.0854]
[1733633277042,2.085,239.6,239.57,6.40073707]
[1733633278041,4.0539,239.71,239.59,6.40073707]
[1733633278238,6.40073707,239.67,239.59,6.40073707]
[1733633278638,6.40073707,239.67,239.59,8.48583707]
[1733633279039,6.40073707,239.67,239.61,6.40073707]
[1733633279746,2.0847,239.63,239.61,6.40073707]
[1733633280439,6.40073707,239.67,239.61,6.40073707]
[1733633280939,2.0845,239.66,239.61,6.40073707]
[1733633281246,6.40073707,239.67,239.61,6.40073707]
[1733633281742,2.0848,239.63,239.61,6.40073707]
[1733633282333,2.0848,239.62,239.61,6.40073707]
[1733633282543,1.86,239.68,239.56,3.9357]
[1733633282544,6.40073707,239.65,239.56,3.9357]
[1733633282733,6.40073707,239.65,239.58,6.40073707]
[1733633283136,6.40073707,239.65,239.56,2.6168]
[1733633283334,6.40073707,239.63,239.54,1.86]
[1733633283541,6.40073707,239.63,239.55,6.40073707]
[1733633283836,8.26073707,239.63,239.55,6.40073707]
[1733633284744,2.0853,239.57,239.55,6.40073707]
[1733633284937,1.86,239.63,239.56,6.40073707]
[1733633285251,2.0849,239.62,239.58,6.40073707]
[1733633285548,1.86,239.63,239.58,6.40073707]
[1733633285741,4.1677,239.74,239.6,6.40073707]
[1733633285742,1.86,239.67,239.6,6.40073707]
[1733633285938,8.26073707,239.67,239.6,6.40073707]
[1733633286744,2.0849,239.61,239.6,6.40073707]
[1733633287142,2.0853,239.57,239.54,1.2932]
[1733633287345,2.0853,239.57,239.55,6.40073707]
[1733633288846,1.86,239.62,239.55,6.40073707]
[1733633289051,2.0853,239.56,239.55,6.40073707]
[1733633289742,6.40073707,239.61,239.53,8.95013707]
[1733633290047,2.0855,239.54,239.53,6.40073707]
[1733633290641,4.1687,239.68,239.44,2.5823]
[1733633290642,2.0858,239.51,239.44,2.5823]
[1733633290840,2.0858,239.51,239.49,6.40073707]
[1733633291444,2.0859,239.5,239.49,6.40073707]
[1733633292443,6.40073707,239.53,239.44,4.4423]
[1733633292748,6.40073707,239.51,239.44,4.4423]
[1733633292947,6.40073707,239.51,239.44,8.26073707]
[1733633294751,2.0862,239.47,239.44,8.26073707]
[1733633295246,6.40073707,239.51,239.4,2.0867]
[1733633295451,6.40073707,239.51,239.43,6.40073707]
[1733633296250,6.40073707,239.49,239.39,1.86]
[1733633296450,6.40073707,239.49,239.41,6.40073707]
[1733633296651,2.0865,239.43,239.41,6.40073707]
[1733633297554,1.86,239.52,239.38,1.86]
[1733633297555,2.0866,239.42,239.38,1.86]
[1733633297753,2.0866,239.42,239.39,6.40073707]
[1733633299252,2.0866,239.42,239.41,6.40073707]
[1733633300048,2.0866,239.42,239.38,1.86]
[1733633300453,2.0866,239.42,239.39,6.40073707]
[1733633301153,8.26073707,239.47,239.33,1.2752]
[1733633301360,2.0867,239.41,239.39,6.40073707]
[1733633303053,1.86,239.47,239.39,6.40073707]
[1733633303253,6.40073707,239.46,239.39,6.40073707]
[1733633303855,2.0864,239.44,239.39,6.40073707]
[1733633304055,6.40073707,239.46,239.39,6.40073707]
[1733633304853,2.0866,239.43,239.39,6.40073707]
[1733633305960,2.0866,239.42,239.39,6.40073707]
[1733633310463,2.0867,239.4,239.39,6.40073707]
[1733633310658,2.0867,239.4,239.37,6.40073707]
[1733633319469,6.40073707,239.42,239.34,1.86]
[1733633319771,8.26073707,239.42,239.35,6.40073707]
[1733633319967,2.0867,239.4,239.35,6.40073707]
[1733633320274,8.26073707,239.42,239.34,1.86]
[1733633320473,8.26073707,239.42,239.36,6.40073707]
[1733633320768,2.0869,239.38,239.36,6.40073707]
[1733633328071,6.40073707,239.4,239.34,6.40073707]
[1733633328471,6.40073707,239.4,239.32,59.57874341]
[1733633329366,2.0872,239.35,239.32,59.57874341]
[1733633329677,6.40073707,239.38,239.32,53.17800634]
[1733633330579,6.40073707,239.38,239.3,6.40073707]
[1733633331181,2.0872,239.35,239.3,6.40073707]
[1733633331473,6.40073707,239.38,239.3,6.40073707]
[1733633331675,2.0873,239.34,239.3,6.40073707]
[1733633334674,2.0874,239.32,239.27,1.86]
[1733633334975,2.0874,239.32,239.29,6.40073707]
[1733633337667,2.0874,239.32,239.3,1.04460913]
[1733633337868,2.0874,239.32,239.29,6.40073707]
[1733633338074,2.0874,239.32,239.3,1.04460553]
[1733633338274,2.0874,239.32,239.29,6.40073707]
[1733633338476,2.0874,239.32,239.3,2.08921106]
[1733633338675,2.0874,239.32,239.29,6.40073707]
[1733633338875,2.0874,239.32,239.3,1.04460913]
[1733633339078,2.0874,239.32,239.29,6.40073707]
[1733633339676,2.0873,239.33,239.29,6.40073707]
[1733633341174,6.40073707,239.36,239.29,6.40073707]
[1733633341374,2.0873,239.34,239.29,6.40073707]
[1733633341579,2.0873,239.34,239.25,4.4789]
[1733633341779,2.0873,239.34,239.28,6.40073707]
[1733633341975,2.0873,239.34,239.29,1.04466357]
[1733633342183,2.0873,239.34,239.28,6.40073707]
[1733633342372,6.40073707,239.32,239.26,2.0879]
[1733633342577,6.40073707,239.3,239.26,2.0879]
[1733633342980,8.48833707,239.3,239.26,2.0879]
[1733633348181,8.48853707,239.28,239.24,2.088]
[1733633348387,6.40073707,239.28,239.21,1.86]
[1733633348689,6.40073707,239.28,239.21,8.26073707]
[1733633349583,6.40073707,239.28,239.25,2.088]
[1733633350688,2.0877,239.29,239.25,2.088]
[1733633350885,8.48843707,239.29,239.25,2.088]
[1733633353087,4.1728,239.45,239.28,6.40073707]
[1733633353291,6.40073707,239.35,239.28,6.40073707]
[1733633353882,6.40073707,239.35,239.3,2.0876]
[1733633354087,6.40073707,239.35,239.28,6.40073707]
[1733633355989,6.40073707,239.35,239.3,6.40073707]
[1733633356587,6.40073707,239.37,239.3,6.40073707]
[1733633357391,6.40073707,239.37,239.32,2.0873]
[1733633357592,6.40073707,239.37,239.3,6.40073707]
[1733633358088,8.48773707,239.37,239.32,2.0874]
[1733633358889,6.40073707,239.35,239.32,2.0874]
[1733633359693,6.40073707,239.33,239.27,1.86]
[1733633360389,6.40073707,239.33,239.29,2.0876]
[1733633360591,6.40073707,239.33,239.27,1.86]
[1733633360793,6.40073707,239.33,239.29,2.0876]
[1733633361594,6.40073707,239.33,239.3,2.0876]
[1733633367001,4.0566,239.49,239.32,6.40073707]
[1733633367197,4.0566,239.49,239.36,6.40073707]
[1733633367502,6.40073707,239.43,239.36,6.40073707]
[1733633368697,2.0866,239.42,239.37,2.0869]
[1733633369101,6.40073707,239.41,239.37,2.0869]
[1733633371603,2.0866,239.42,239.37,2.0869]
[1733633372004,8.48733707,239.42,239.37,2.0869]
[1733633373003,8.26073707,239.47,239.42,2.0866]
[1733633373700,6.40073707,239.45,239.4,2.0867]
[1733633374104,6.40073707,239.43,239.37,1.2889]
[1733633374406,6.40073707,239.41,239.37,1.2889]
[1733633375608,2.0867,239.41,239.37,3.3759]
[1733633376104,6.40073707,239.43,239.37,1.2889]
[1733633377002,8.48733707,239.43,239.38,2.0869]
[1733633377307,2.0866,239.43,239.38,6.40073707]
[1733633377508,8.26073707,239.46,239.38,6.40073707]
[1733633377708,6.40073707,239.46,239.38,6.40073707]
[1733633378103,2.0864,239.44,239.4,2.0867]
[1733633378608,8.26073707,239.47,239.4,6.40073707]
[1733633378810,8.26073707,239.47,239.41,2.0866]
[1733633378811,2.0863,239.46,239.41,2.0866]
[1733633379700,2.0863,239.45,239.41,2.0866]
[1733633382721,8.48703707,239.45,239.41,2.0866]
[1733633383013,8.48723707,239.43,239.38,2.0869]
[1733633383211,6.40073707,239.43,239.38,2.0869]
[1733633383512,6.40073707,239.41,239.34,8.26073707]
[1733633383713,6.40073707,239.41,239.34,6.40073707]
[1733633384718,2.0868,239.4,239.36,2.087]
[1733633389817,2.0868,239.4,239.36,8.48773707]
[1733633392518,2.0868,239.4,239.37,2.087]
[1733633392720,2.0867,239.41,239.37,2.087]
[1733633393319,2.0867,239.41,239.36,6.40073707]
[1733633393629,2.0867,239.41,239.38,2.0869]
[1733633394226,4.0608,239.58,239.4,6.40073707]
[1733633394427,2.0863,239.46,239.42,2.0866]
[1733633394624,6.40073707,239.47,239.42,2.0866]
[1733633394819,6.40073707,239.45,239.38,6.40073707]
[1733633395019,8.48703707,239.45,239.41,2.0866]
[1733633395932,2.0863,239.45,239.41,2.0866]
[1733633396229,8.48703707,239.45,239.41,2.0866]
[1733633396727,2.0863,239.45,239.41,2.0866]
[1733633400030,6.40073707,239.47,239.38,6.40073707]
[1733633400331,6.40073707,239.45,239.38,6.40073707]
[1733633400728,6.40073707,239.45,239.37,1.86]
[1733633401326,2.0865,239.43,239.39,2.0868]
[1733633402535,2.0865,239.43,239.37,1.86]
[1733633403235,2.0865,239.43,239.39,2.0867]
[1733633403726,2.0866,239.42,239.39,2.0867]
[1733633407226,6.40073707,239.4,239.28,1.3244]
[1733633407527,1.86,239.41,239.25,6.40073707]
[1733633407729,6.40073707,239.33,239.26,4.85364517]
[1733633407933,6.40073707,239.33,239.29,2.0877]
[1733633408236,6.40073707,239.33,239.25,6.40073707]
[1733633408536,8.48813707,239.33,239.28,2.0878]
[1733633410033,2.0874,239.32,239.28,2.0878]
[1733633410831,2.0873,239.34,239.29,2.0877]
[1733633411936,2.0873,239.34,239.3,1.0445756]
[1733633412131,2.0873,239.34,239.31,1.0445756]
[1733633412337,2.0873,239.34,239.29,2.0877]
[1733633412540,2.0873,239.34,239.3,1.04457336]
[1733633412741,2.0873,239.34,239.29,2.0877]
[1733633412942,3.9472,239.35,239.3,3.13207336]
[1733633413239,6.40073707,239.34,239.31,1.04457336]
[1733633413438,6.40073707,239.34,239.3,2.0875]
[1733633415037,8.48803707,239.34,239.3,2.0875]
[1733633415434,6.40073707,239.34,239.26,6.40073707]
[1733633415636,6.40073707,239.32,239.27,6.52435411]
[1733633415936,6.40073707,239.32,239.28,1.04458101]
[1733633416145,6.40073707,239.32,239.24,8.26073707]
[1733633416331,2.0875,239.31,239.26,2.0879]
[1733633416531,2.0875,239.31,239.27,4.85317823]
[1733633416737,2.0875,239.31,239.28,1.0446421]
[1733633416937,2.0875,239.31,239.26,2.0879]
[1733633417241,2.0875,239.31,239.27,4.85271026]
[1733633417436,2.0875,239.31,239.28,1.04464499]
[1733633417740,2.0875,239.31,239.27,2.0878]
[1733633417942,2.0875,239.31,239.28,1.04464027]
[1733633418142,2.0875,239.31,239.27,2.0878]
[1733633418343,2.0875,239.31,239.28,1.04463668]
[1733633418538,2.0875,239.31,239.27,2.0878]
[1733633418741,2.0875,239.31,239.28,1.04463668]
[1733633418935,2.0875,239.31,239.27,2.0878]
[1733633423646,8.48813707,239.32,239.28,2.0878]
[1733633429947,2.0875,239.31,239.27,2.0879]
[1733633430749,6.40073707,239.32,239.27,2.0879]
[1733633430750,2.0876,239.3,239.27,2.0879]
[1733633432254,1.3112,239.44,239.28,6.40073707]
[1733633432452,6.40073707,239.36,239.29,1.0445623]
[1733633432653,6.40073707,239.36,239.28,6.40073707]
[1733633433048,6.40073707,239.36,239.29,1.04457328]
[1733633433252,6.40073707,239.36,239.31,2.0875]
[1733633433253,2.0872,239.35,239.31,2.0875]
[1733633437553,6.40073707,239.36,239.31,2.0875]
[1733633437554,2.0873,239.34,239.31,2.0875]
[1733633444464,6.40073707,239.36,239.28,6.40073707]
[1733633444663,6.40073707,239.36,239.29,1.0445377]
[1733633444860,6.40073707,239.36,239.28,6.40073707]
[1733633445062,6.40073707,239.34,239.28,6.40073707]
[1733633445265,6.40073707,239.34,239.28,2.0878]
[1733633445764,6.40073707,239.34,239.27,6.40073707]
[1733633446560,6.40073707,239.3,239.24,6.40073707]
[1733633446763,6.40073707,239.3,239.25,1.04470354]
[1733633446964,6.40073707,239.3,239.24,6.40073707]
[1733633447165,2.0878,239.28,239.25,3.13270858]
[1733633447366,2.0878,239.28,239.25,2.088]
[1733633448966,2.0878,239.28,239.24,6.40073707]
[1733633449269,6.40073707,239.3,239.24,2.0881]
[1733633449465,6.40073707,239.3,239.25,4.85563824]
[1733633449768,6.40073707,239.3,239.26,1.04476269]
[1733633449966,2.0879,239.28,239.24,2.0881]
[1733633450166,2.0879,239.28,239.25,4.85649006]
[1733633450367,2.0879,239.28,239.26,1.04477413]
[1733633450567,2.0879,239.28,239.24,2.0881]
[1733633450769,2.088,239.26,239.25,4.85726162]
[1733633450963,2.088,239.26,239.25,1.044773]
[1733633452374,2.088,239.26,239.25,1.04482182]
[1733633455672,2.088,239.26,239.23,2.0882]
[1733633455976,2.088,239.26,239.24,4.8574413]
[1733633456174,2.088,239.26,239.25,1.04481879]
[1733633456476,2.088,239.26,239.23,2.0882]
[1733633456676,2.088,239.25,239.24,1.04481234]
[1733633456872,6.40073707,239.28,239.24,1.04481234]
[1733633457075,6.40073707,239.28,239.21,6.40073707]
[1733633457275,6.40073707,239.28,239.22,4.85724758]
[1733633457576,2.088,239.26,239.23,3.13302707]
[1733633457769,2.088,239.26,239.23,2.0882]
[1733633460983,6.40073707,239.26,239.19,53.20717858]
[1733633461277,6.40073707,239.26,239.2,8.61668253]
[1733633461474,1.86,239.29,239.2,8.61668253]
[1733633461475,6.40073707,239.24,239.21,4.85641736]
[1733633461674,2.0883,239.23,239.2,2.0885]
[1733633463484,2.0884,239.21,239.17,2.0887]
[1733633463673,2.0884,239.21,239.18,4.85523026]
[1733633463872,2.0884,239.21,239.19,1.04495552]
[1733633464075,2.0884,239.21,239.2,1.04495552]
[1733633464380,2.0884,239.21,239.13,1.86]
[1733633464676,2.0884,239.21,239.15,6.40073707]
[1733633464879,2.0884,239.21,239.17,2.0887]
[1733633465075,2.0884,239.21,239.18,6.5266357]
[1733633465274,2.0884,239.21,239.19,4.85469184]
[1733633465476,2.0884,239.21,239.2,1.04496062]
[1733633466874,6.40073707,239.22,239.2,1.04496062]
[1733633467078,6.40073707,239.22,239.18,2.0886]
[1733633467384,6.40073707,239.22,239.19,1.04496421]
[1733633467586,1.86,239.24,239.2,1.04496421]
[1733633467788,1.86,239.24,239.21,1.04490167]
[1733633467980,1.86,239.24,239.17,6.40073707]
[1733633468187,1.86,239.24,239.18,12.61729337]
[1733633468382,1.86,239.24,239.19,6.52463442]
[1733633468687,1.86,239.24,239.21,2.0884]
[1733633468888,2.0881,239.25,239.22,1.0448933]
[1733633469076,2.0881,239.25,239.14,0.23985256]
[1733633469077,6.40073707,239.26,239.19,6.40073707]
[1733633469283,6.40073707,239.26,239.22,2.0882]
[1733633469982,8.48873707,239.26,239.22,2.0882]
[1733633470386,8.48873707,239.26,239.19,6.40073707]
[1733633470587,8.48873707,239.26,239.23,2.0882]
[1733633471592,4.1735,239.4,239.23,6.40073707]
[1733633471792,6.40073707,239.29,239.24,1.0448382]
[1733633471995,2.0869,239.38,239.25,1.0448382]
[1733633472191,1.86,239.37,239.29,2.0876]
[1733633472489,6.40073707,239.32,239.29,2.0876]
[1733633473595,6.40073707,239.32,239.3,2.0876]
[1733633473790,6.40073707,239.34,239.27,6.40073707]
[1733633473990,6.40073707,239.34,239.28,1.04465611]
[1733633474191,6.40073707,239.34,239.29,1.04465611]
[1733633474387,6.40073707,239.34,239.27,6.40073707]
[1733633474585,1.86,239.37,239.28,6.52221619]
[1733633474785,6.40073707,239.35,239.29,6.7109134]
[1733633474999,6.40073707,239.35,239.3,1.04460374]
[1733633475191,6.40073707,239.35,239.29,1.86]
[1733633475488,6.40073707,239.35,239.3,1.04454939]
[1733633475685,6.40073707,239.35,239.33,2.0873]
[1733633477295,6.40073707,239.35,239.3,2.0875]
[1733633477594,6.40073707,239.37,239.29,8.26073707]
[1733633477800,6.40073707,239.37,239.32,2.0874]
[1733633477990,1.86,239.4,239.29,8.26073707]
[1733633478292,6.40073707,239.39,239.31,6.40073707]
[1733633478490,6.40073707,239.39,239.32,1.04450472]
[1733633478686,1.86,239.43,239.33,6.40073707]
[1733633478891,6.40073707,239.4,239.33,6.40073707]
[1733633479699,6.40073707,239.38,239.36,2.087]
[1733633480699,2.0867,239.4,239.36,2.087]
[1733633480900,6.40073707,239.37,239.36,2.087]
[1733633481295,2.0866,239.41,239.36,2.087]
[1733633481491,6.40073707,239.39,239.36,2.087]
[1733633482495,6.40073707,239.37,239.34,2.0872]
[1733633485806,6.40073707,239.37,239.3,1.3539]
[1733633485998,2.5979,239.45,239.28,3.2373]
[1733633485999,6.40073707,239.35,239.28,3.2373]
[1733633486199,6.40073707,239.35,239.28,9.63803707]
[1733633486500,6.40073707,239.35,239.28,1.3773]
[1733633486802,8.48793707,239.35,239.3,2.0876]
[1733633487101,8.48823707,239.31,239.22,2.0883]
[1733633487301,6.40073707,239.31,239.24,6.40073707]
[1733633487802,6.40073707,239.31,239.26,2.0879]
[1733633487803,8.48823707,239.31,239.26,2.0879]
[1733633488095,6.40073707,239.31,239.26,2.0879]
[1733633489706,2.0876,239.3,239.26,2.0879]
[1733633490106,8.26073707,239.33,239.26,6.40073707]